[Event "Late-Titled-Tuesday-Blitz-May-07-2024"]
[Site "Chess.com"]
[Date "2024.05.07"]
[Round "2"]
[White "besarquis"]
[Black "TheDiscoOne"]
[Result "0-1"]
[WhiteElo "2250"]
[BlackElo "2522"]
[TimeControl "180+1"]
[EndTime "14:18:16 PDT"]
[Termination "TheDiscoOne won on time"]

1. e4 {[%clk 0:03:00.9]} 1... c5 {[%clk 0:02:58.5]} 2. Nf3 {[%clk 0:03:00.6]}
2... g6 {[%clk 0:02:58.8]} 3. d4 {[%clk 0:02:59.3]} 3... cxd4 {[%clk 0:02:59.7]}
4. Nxd4 {[%clk 0:02:59.3]} 4... Nc6 {[%clk 0:02:59.9]} 5. c4 {[%clk 0:02:57]}
5... Nf6 {[%clk 0:02:59.9]} 6. Nc3 {[%clk 0:02:56.1]} 6... Nxd4 {[%clk
0:02:58.2]} 7. Qxd4 {[%clk 0:02:55.2]} 7... d6 {[%clk 0:02:58.7]} 8. f3 {[%clk
0:02:48.6]} 8... Bg7 {[%clk 0:02:58.4]} 9. Be2 {[%clk 0:02:46.5]} 9... O-O
{[%clk 0:02:58.4]} 10. Qd3 {[%clk 0:02:43.9]} 10... Be6 {[%clk 0:02:58.3]} 11.
Be3 {[%clk 0:02:40.6]} 11... Qa5 {[%clk 0:02:57.8]} 12. Rc1 {[%clk 0:02:29.9]}
12... Rfc8 {[%clk 0:02:57]} 13. b3 {[%clk 0:02:30]} 13... a6 {[%clk 0:02:57]}
14. O-O {[%clk 0:02:17.1]} 14... b5 {[%clk 0:02:43.9]} 15. cxb5 {[%clk
0:02:14.5]} 15... axb5 {[%clk 0:02:44.1]} 16. Qxb5 {[%clk 0:02:01.2]} 16... Nd7
{[%clk 0:02:31.5]} 17. Qxa5 {[%clk 0:01:57.7]} 17... Rxa5 {[%clk 0:02:32.4]} 18.
Na4 {[%clk 0:01:55.9]} 18... Nc5 {[%clk 0:02:24.5]} 19. Nb6 {[%clk 0:01:33]}
19... Rb8 {[%clk 0:02:19.7]} 20. b4 {[%clk 0:01:33.2]} 20... Rxa2 {[%clk
0:02:17.9]} 21. bxc5 {[%clk 0:01:29.6]} 21... Rxe2 {[%clk 0:02:12.4]} 22. Bf4
{[%clk 0:01:28.6]} 22... Bd4+ {[%clk 0:02:04.1]} 23. Kh1 {[%clk 0:01:25.6]}
23... Bxc5 {[%clk 0:02:03.2]} 24. Na4 {[%clk 0:00:56.8]} 24... Be3 {[%clk
0:01:59.8]} 25. Bxe3 {[%clk 0:00:42.8]} 25... Rxe3 {[%clk 0:02:00.7]} 26. Rc7
{[%clk 0:00:34.9]} 26... Kf8 {[%clk 0:01:55.8]} 27. Rfc1 {[%clk 0:00:30.1]}
27... Rb4 {[%clk 0:01:49.6]} 28. Nc3 {[%clk 0:00:28.9]} 28... Rc4 {[%clk
0:01:26]} 29. Rxc4 {[%clk 0:00:25.8]} 29... Bxc4 {[%clk 0:01:26.9]} 30. Kg1
{[%clk 0:00:25.4]} 30... Be6 {[%clk 0:01:25.4]} 31. Kf2 {[%clk 0:00:25.5]} 31...
Rd3 {[%clk 0:01:22]} 32. Ke2 {[%clk 0:00:24.6]} 32... Bc4 {[%clk 0:01:21.5]} 33.
Kf2 {[%clk 0:00:19.9]} 33... Rd2+ {[%clk 0:01:19.7]} 34. Kg1 {[%clk 0:00:16.9]}
34... Be6 {[%clk 0:01:18.5]} 35. Kf1 {[%clk 0:00:16.4]} 35... Rb2 {[%clk
0:01:17.3]} 36. Ne2 {[%clk 0:00:16.1]} 36... Kg7 {[%clk 0:01:15.3]} 37. Nd4
{[%clk 0:00:16.1]} 37... Kf6 {[%clk 0:01:11.3]} 38. Nc6 {[%clk 0:00:14.2]} 38...
Bd7 {[%clk 0:01:06.6]} 39. Nd4 {[%clk 0:00:13]} 39... Rd2 {[%clk 0:01:03.2]} 40.
Nb3 {[%clk 0:00:08]} 40... Rb2 {[%clk 0:00:57.8]} 41. Nd4 {[%clk 0:00:08.3]}
41... Ke5 {[%clk 0:00:54.9]} 42. Nc2 {[%clk 0:00:08.5]} 42... Bb5+ {[%clk
0:00:52.5]} 43. Kg1 {[%clk 0:00:08.9]} 43... Bd3 {[%clk 0:00:50.8]} 44. Ne3
{[%clk 0:00:07.6]} 44... Kd4 {[%clk 0:00:47.3]} 45. Nd1 {[%clk 0:00:06.6]} 45...
Rb1 {[%clk 0:00:45]} 46. Rxb1 {[%clk 0:00:04.4]} 46... Bxb1 {[%clk 0:00:45.9]}
47. Kf2 {[%clk 0:00:04.8]} 47... e6 {[%clk 0:00:42.6]} 48. Ne3 {[%clk
0:00:04.9]} 48... Ba2 {[%clk 0:00:41.5]} 49. Ng4 {[%clk 0:00:05]} 49... h5
{[%clk 0:00:39.2]} 50. Nf6 {[%clk 0:00:05.3]} 50... d5 {[%clk 0:00:38.1]} 51.
exd5 {[%clk 0:00:04.8]} 51... exd5 {[%clk 0:00:39]} 52. Ng8 {[%clk 0:00:03.4]}
52... Kc3 {[%clk 0:00:38.4]} 53. g4 {[%clk 0:00:01.7]} 53... hxg4 {[%clk
0:00:37.4]} 54. fxg4 {[%clk 0:00:01.8]} 54... d4 {[%clk 0:00:38.3]} 55. Nf6
{[%clk 0:00:01.4]} 55... d3 {[%clk 0:00:38.3]} 56. Ne4+ {[%clk 0:00:01.6]} 56...
Kd4 {[%clk 0:00:37]} 57. Nd2 {[%clk 0:00:00.7]} 57... Bd5 {[%clk 0:00:37.4]} 0-1

[Event "Late-Titled-Tuesday-Blitz-May-07-2024"]
[Site "Chess.com"]
[Date "2024.05.07"]
[Round "2"]
[White "th3d4rkness"]
[Black "Balla_Tamas"]
[Result "0-1"]
[WhiteElo "2219"]
[BlackElo "2516"]
[TimeControl "180+1"]
[EndTime "14:18:16 PDT"]
[Termination "Balla_Tamas won by resignation"]

1. e4 {[%clk 0:02:46.2]} 1... c5 {[%clk 0:02:58.5]} 2. Nc3 {[%clk 0:02:45.3]}
2... Nc6 {[%clk 0:02:58.5]} 3. Bb5 {[%clk 0:02:44.7]} 3... Nd4 {[%clk
0:02:57.6]} 4. Bc4 {[%clk 0:02:44.5]} 4... e6 {[%clk 0:02:56]} 5. f4 {[%clk
0:02:43.5]} 5... a6 {[%clk 0:02:51.8]} 6. a4 {[%clk 0:02:42.2]} 6... Nf6 {[%clk
0:02:50.5]} 7. d3 {[%clk 0:02:39.6]} 7... d5 {[%clk 0:02:46.6]} 8. Ba2 {[%clk
0:02:38]} 8... Be7 {[%clk 0:02:43]} 9. Nf3 {[%clk 0:02:37.3]} 9... O-O {[%clk
0:02:41.3]} 10. O-O {[%clk 0:02:35]} 10... b5 {[%clk 0:02:38.6]} 11. e5 {[%clk
0:02:29.2]} 11... Nxf3+ {[%clk 0:02:27.3]} 12. Rxf3 {[%clk 0:02:20.6]} 12... Nd7
{[%clk 0:02:05.1]} 13. axb5 {[%clk 0:02:19.7]} 13... axb5 {[%clk 0:02:03.5]} 14.
Nxb5 {[%clk 0:02:15.2]} 14... Qb6 {[%clk 0:01:44.2]} 15. Na3 {[%clk 0:01:59.1]}
15... f6 {[%clk 0:01:43.6]} 16. exf6 {[%clk 0:01:43.1]} 16... Bxf6 {[%clk
0:01:40.7]} 17. Bb3 {[%clk 0:01:38.8]} 17... c4+ {[%clk 0:01:29.8]} 18. Be3
{[%clk 0:01:32.1]} 18... Bd4 {[%clk 0:01:29.7]} 19. dxc4 {[%clk 0:01:22.8]}
19... Bxe3+ {[%clk 0:01:27.2]} 20. Kh1 {[%clk 0:01:21.5]} 20... dxc4 {[%clk
0:01:20.6]} 21. Nxc4 {[%clk 0:01:20.2]} 21... Rxa1 {[%clk 0:01:20.3]} 22. Qxa1
{[%clk 0:01:16.1]} 22... Qa7 {[%clk 0:01:18.2]} 23. Qe1 {[%clk 0:01:10.3]} 23...
Bxf4 {[%clk 0:01:12.6]} 24. Qxe6+ {[%clk 0:01:04]} 24... Kh8 {[%clk 0:01:12]}
25. g3 {[%clk 0:00:49.1]} 25... Bb7 {[%clk 0:01:11.1]} 26. Nd2 {[%clk
0:00:35.5]} 26... Bxd2 {[%clk 0:00:59.6]} 27. Bd5 {[%clk 0:00:30.4]} 27... Bxd5
{[%clk 0:00:50.9]} 28. Qxd5 {[%clk 0:00:29.5]} 28... Rxf3 {[%clk 0:00:45.5]} 29.
Qxf3 {[%clk 0:00:27.8]} 29... h6 {[%clk 0:00:34]} 30. Qd5 {[%clk 0:00:22.7]}
30... Be3 {[%clk 0:00:30.9]} 31. b4 {[%clk 0:00:16.1]} 31... Qd4 {[%clk
0:00:26.9]} 32. Qxd4 {[%clk 0:00:11.6]} 32... Bxd4 {[%clk 0:00:27.8]} 33. Kg2
{[%clk 0:00:09.5]} 33... Bc3 {[%clk 0:00:26.9]} 34. b5 {[%clk 0:00:09.4]} 34...
Kg8 {[%clk 0:00:25.1]} 35. Kf3 {[%clk 0:00:09.6]} 35... Kf7 {[%clk 0:00:25.8]}
36. Ke4 {[%clk 0:00:10.1]} 36... Ke6 {[%clk 0:00:26.2]} 37. Kd3 {[%clk
0:00:10.6]} 37... Ba5 {[%clk 0:00:25.3]} 38. c4 {[%clk 0:00:09.1]} 38... Bb6
{[%clk 0:00:25.7]} 39. Ke4 {[%clk 0:00:08.7]} 39... Nc5+ {[%clk 0:00:23.3]} 40.
Kf4 {[%clk 0:00:07.6]} 40... Nd3+ {[%clk 0:00:22.7]} 41. Ke4 {[%clk 0:00:05.9]}
41... Nb2 {[%clk 0:00:22.8]} 42. Kf4 {[%clk 0:00:03.5]} 42... Nxc4 {[%clk
0:00:23.1]} 43. g4 {[%clk 0:00:03.9]} 43... Bc7+ {[%clk 0:00:22]} 44. Ke4 {[%clk
0:00:02.6]} 44... Bxh2 {[%clk 0:00:22.1]} 45. Kd4 {[%clk 0:00:03.3]} 45... Nb6
{[%clk 0:00:22]} 46. Kc5 {[%clk 0:00:03.9]} 46... Bg1+ {[%clk 0:00:22.1]} 47.
Kb4 {[%clk 0:00:03]} 47... Kd6 {[%clk 0:00:22.6]} 48. Kc3 {[%clk 0:00:03.6]}
48... Kc5 {[%clk 0:00:22.3]} 49. Kd2 {[%clk 0:00:04]} 49... Kxb5 {[%clk
0:00:22.8]} 50. Ke2 {[%clk 0:00:04.7]} 50... Bd4 {[%clk 0:00:23]} 51. Kf3 {[%clk
0:00:05.6]} 51... Bf6 {[%clk 0:00:23.5]} 52. Ke4 {[%clk 0:00:06.5]} 52... Kc6
{[%clk 0:00:23.9]} 53. Kf5 {[%clk 0:00:07]} 53... Nd7 {[%clk 0:00:24.1]} 54. g5
{[%clk 0:00:07]} 54... Bxg5 {[%clk 0:00:23.8]} 0-1

[Event "Late-Titled-Tuesday-Blitz-May-07-2024"]
[Site "Chess.com"]
[Date "2024.05.07"]
[Round "2"]
[White "mbojan"]
[Black "MalyDominator"]
[Result "1-0"]
[WhiteElo "2895"]
[BlackElo "2613"]
[TimeControl "180+1"]
[EndTime "14:18:20 PDT"]
[Termination "mbojan won by resignation"]

1. e4 {[%clk 0:03:00.9]} 1... c5 {[%clk 0:02:56]} 2. Nf3 {[%clk 0:03:00.9]} 2...
d6 {[%clk 0:02:53.9]} 3. d4 {[%clk 0:03:00.8]} 3... cxd4 {[%clk 0:02:54.8]} 4.
Nxd4 {[%clk 0:03:01.3]} 4... Nf6 {[%clk 0:02:54.9]} 5. Nc3 {[%clk 0:03:01.8]}
5... Nc6 {[%clk 0:02:53.3]} 6. Bg5 {[%clk 0:03:00.8]} 6... e6 {[%clk 0:02:48.2]}
7. Qd2 {[%clk 0:02:58.8]} 7... a6 {[%clk 0:02:48.6]} 8. O-O-O {[%clk 0:02:58.4]}
8... Bd7 {[%clk 0:02:48.6]} 9. f3 {[%clk 0:02:56.8]} 9... Nxd4 {[%clk
0:02:47.6]} 10. Qxd4 {[%clk 0:02:56.9]} 10... b5 {[%clk 0:02:47.2]} 11. Kb1
{[%clk 0:02:54.4]} 11... Qc7 {[%clk 0:02:46.7]} 12. Bxf6 {[%clk 0:02:22.9]}
12... gxf6 {[%clk 0:02:47.6]} 13. Qxf6 {[%clk 0:02:23.4]} 13... Rg8 {[%clk
0:02:47.9]} 14. Qd4 {[%clk 0:02:24]} 14... Rb8 {[%clk 0:02:37.4]} 15. Ne2 {[%clk
0:02:21.8]} 15... Ke7 {[%clk 0:02:36.5]} 16. Qd2 {[%clk 0:01:58.1]} 16... Bg7
{[%clk 0:02:33.4]} 17. Nc1 {[%clk 0:01:56.4]} 17... a5 {[%clk 0:02:28.5]} 18. f4
{[%clk 0:01:54.8]} 18... Rgc8 {[%clk 0:02:25.2]} 19. h4 {[%clk 0:01:52.9]} 19...
b4 {[%clk 0:02:22]} 20. Rh3 {[%clk 0:01:52]} 20... a4 {[%clk 0:02:16.1]} 21. Rd3
{[%clk 0:01:48.7]} 21... Bc3 {[%clk 0:02:14.6]} 22. Qf2 {[%clk 0:01:39.8]} 22...
Rb6 {[%clk 0:02:00.9]} 23. h5 {[%clk 0:01:15]} 23... Bb5 {[%clk 0:01:40]} 24.
Rh3 {[%clk 0:01:04]} 24... Bxf1 {[%clk 0:01:34.8]} 25. Rxf1 {[%clk 0:01:04.9]}
25... Bd4 {[%clk 0:01:31.1]} 26. Qe2 {[%clk 0:01:03.2]} 26... a3 {[%clk
0:01:28]} 27. b3 {[%clk 0:00:40.4]} 27... Rc6 {[%clk 0:01:27.6]} 28. c4 {[%clk
0:00:40.8]} 28... bxc3 {[%clk 0:01:25.6]} 29. Qc2 {[%clk 0:00:41.5]} 29... Rg8
{[%clk 0:01:20.7]} 30. Nd3 {[%clk 0:00:37.9]} 30... Rxg2 {[%clk 0:01:04.5]} 31.
Qxg2 {[%clk 0:00:37.6]} 31... c2+ {[%clk 0:01:05.1]} 32. Kc1 {[%clk 0:00:38.3]}
32... Bb2+ {[%clk 0:01:04.9]} 33. Nxb2 {[%clk 0:00:38.7]} 33... axb2+ {[%clk
0:01:05.3]} 34. Kxb2 {[%clk 0:00:39.6]} 34... c1=Q+ {[%clk 0:01:05.8]} 35. Rxc1
{[%clk 0:00:40]} 35... Rxc1 {[%clk 0:01:06.2]} 36. Qd2 {[%clk 0:00:36.5]} 36...
Rf1 {[%clk 0:00:52.4]} 37. Rc3 {[%clk 0:00:22.8]} 37... Qb6 {[%clk 0:00:52]} 38.
Rc2 {[%clk 0:00:23.5]} 38... Kd7 {[%clk 0:00:36]} 39. e5 {[%clk 0:00:14.3]}
39... d5 {[%clk 0:00:34.3]} 40. Qc3 {[%clk 0:00:14.9]} 40... Rf2 {[%clk
0:00:10.6]} 41. a4 {[%clk 0:00:05.1]} 41... Rxc2+ {[%clk 0:00:09]} 42. Qxc2
{[%clk 0:00:02.3]} 42... Qd4+ {[%clk 0:00:08.9]} 43. Ka3 {[%clk 0:00:02.8]}
43... Qxf4 {[%clk 0:00:07.5]} 44. a5 {[%clk 0:00:03.5]} 44... Qxe5 {[%clk
0:00:07.8]} 45. b4 {[%clk 0:00:01.6]} 45... Qa1+ {[%clk 0:00:06.7]} 46. Kb3
{[%clk 0:00:01.8]} 46... Qd4 {[%clk 0:00:04.4]} 47. Qxh7 {[%clk 0:00:01.6]}
47... Qd3+ {[%clk 0:00:04.5]} 48. Qxd3 {[%clk 0:00:00.1]} 48... d4 {[%clk
0:00:04.1]} 49. Qc2 {[%clk 0:00:01]} 1-0

[Event "Late-Titled-Tuesday-Blitz-May-07-2024"]
[Site "Chess.com"]
[Date "2024.05.07"]
[Round "2"]
[White "DucksParadise"]
[Black "pouya21"]
[Result "1/2-1/2"]
[WhiteElo "2570"]
[BlackElo "2826"]
[TimeControl "180+1"]
[EndTime "14:18:23 PDT"]
[Termination "Game drawn by repetition"]

1. d4 {[%clk 0:03:00.9]} 1... Nf6 {[%clk 0:02:59.1]} 2. Nf3 {[%clk 0:02:59.6]}
2... d5 {[%clk 0:02:58.1]} 3. Bf4 {[%clk 0:02:55.6]} 3... g6 {[%clk 0:02:52.4]}
4. e3 {[%clk 0:02:52.2]} 4... Bg7 {[%clk 0:02:52.5]} 5. h3 {[%clk 0:02:51.7]}
5... O-O {[%clk 0:02:52.8]} 6. Be2 {[%clk 0:02:51.7]} 6... b6 {[%clk 0:02:52.7]}
7. O-O {[%clk 0:02:51.6]} 7... Bb7 {[%clk 0:02:53.2]} 8. Nbd2 {[%clk 0:02:50.4]}
8... c5 {[%clk 0:02:53.3]} 9. c3 {[%clk 0:02:50.3]} 9... Nc6 {[%clk 0:02:48.7]}
10. Bh2 {[%clk 0:02:49.3]} 10... Nd7 {[%clk 0:02:47.8]} 11. c4 {[%clk
0:02:31.9]} 11... dxc4 {[%clk 0:02:38.5]} 12. d5 {[%clk 0:02:31.9]} 12... Nb4
{[%clk 0:02:38.1]} 13. Nxc4 {[%clk 0:02:25.5]} 13... Nxd5 {[%clk 0:02:32]} 14.
Qd2 {[%clk 0:02:11.2]} 14... N7f6 {[%clk 0:02:05.3]} 15. Rfd1 {[%clk 0:02:08.6]}
15... Qc8 {[%clk 0:01:54.1]} 16. Rac1 {[%clk 0:02:04.6]} 16... Rd8 {[%clk
0:01:53.7]} 17. a3 {[%clk 0:01:45.4]} 17... Nc7 {[%clk 0:01:40]} 18. Qxd8+
{[%clk 0:01:41]} 18... Qxd8 {[%clk 0:01:39.2]} 19. Rxd8+ {[%clk 0:01:41.5]}
19... Rxd8 {[%clk 0:01:40.1]} 20. Bxc7 {[%clk 0:01:42]} 20... Rd7 {[%clk
0:01:40.8]} 21. Bf4 {[%clk 0:01:39.3]} 21... Nd5 {[%clk 0:01:38.5]} 22. Be5
{[%clk 0:01:37.5]} 22... f6 {[%clk 0:01:36.9]} 23. Bh2 {[%clk 0:01:35.4]} 23...
e5 {[%clk 0:01:35.5]} 24. Rd1 {[%clk 0:01:24.6]} 24... Bc6 {[%clk 0:01:35.3]}
25. e4 {[%clk 0:01:09.5]} 25... Nc7 {[%clk 0:01:30.3]} 26. Rxd7 {[%clk
0:01:08.2]} 26... Bxd7 {[%clk 0:01:31.2]} 27. Nfd2 {[%clk 0:01:05.5]} 27... Ne6
{[%clk 0:01:30.5]} 28. Bd3 {[%clk 0:01:01.9]} 28... b5 {[%clk 0:01:27.4]} 29.
Ne3 {[%clk 0:01:01.6]} 29... c4 {[%clk 0:01:24.8]} 30. Bb1 {[%clk 0:00:58.5]}
30... Bf8 {[%clk 0:01:21.8]} 31. Nd5 {[%clk 0:00:57.9]} 31... Kf7 {[%clk
0:01:19.4]} 32. f4 {[%clk 0:00:52.9]} 32... Bc5+ {[%clk 0:01:19.3]} 33. Kf1
{[%clk 0:00:49.8]} 33... Bd4 {[%clk 0:01:19.9]} 34. fxe5 {[%clk 0:00:47.9]}
34... Bxb2 {[%clk 0:01:18.8]} 35. exf6 {[%clk 0:00:40.9]} 35... Bxa3 {[%clk
0:01:13.2]} 36. Nf3 {[%clk 0:00:39.5]} 36... Bc8 {[%clk 0:00:54]} 37. Ne5+
{[%clk 0:00:36.9]} 37... Kf8 {[%clk 0:00:54.6]} 38. f7 {[%clk 0:00:27.1]} 38...
Bb2 {[%clk 0:00:50.8]} 39. Nf6 {[%clk 0:00:18.8]} 39... Bxe5 {[%clk 0:00:47.6]}
40. Bxe5 {[%clk 0:00:19.7]} 40... h5 {[%clk 0:00:42.8]} 41. Nd5 {[%clk
0:00:16.4]} 41... Kxf7 {[%clk 0:00:42]} 42. Nc7 {[%clk 0:00:16.7]} 42... Nxc7
{[%clk 0:00:39.1]} 43. Bxc7 {[%clk 0:00:17.6]} 43... Ke6 {[%clk 0:00:32.7]} 44.
Kf2 {[%clk 0:00:17.1]} 44... b4 {[%clk 0:00:30.3]} 45. Ba5 {[%clk 0:00:16.7]}
45... b3 {[%clk 0:00:30.8]} 46. Ke3 {[%clk 0:00:16.4]} 46... Bd7 {[%clk
0:00:28.7]} 47. Bc3 {[%clk 0:00:16.4]} 47... Bc6 {[%clk 0:00:26.7]} 48. Kf4
{[%clk 0:00:15.2]} 48... Kd6 {[%clk 0:00:23.1]} 49. Kg5 {[%clk 0:00:14]} 49...
Kc5 {[%clk 0:00:21.4]} 50. Kxg6 {[%clk 0:00:13.6]} 50... a5 {[%clk 0:00:22]} 51.
Bxa5 {[%clk 0:00:08.8]} 51... Kd4 {[%clk 0:00:22.7]} 52. Kf5 {[%clk 0:00:08.2]}
52... c3 {[%clk 0:00:22.7]} 53. Bxc3+ {[%clk 0:00:08.4]} 53... Kxc3 {[%clk
0:00:23.6]} 54. e5 {[%clk 0:00:09.1]} 54... Kb2 {[%clk 0:00:23.3]} 55. Bd3
{[%clk 0:00:08.7]} 55... Kc3 {[%clk 0:00:23.8]} 56. Bb1 {[%clk 0:00:09.1]} 56...
Kb2 {[%clk 0:00:23.6]} 57. Bd3 {[%clk 0:00:09.2]} 57... Kc3 {[%clk 0:00:22.3]}
58. Bb1 {[%clk 0:00:09.4]} 1/2-1/2

[Event "Late-Titled-Tuesday-Blitz-May-07-2024"]
[Site "Chess.com"]
[Date "2024.05.07"]
[Round "2"]
[White "FelixBlohberger"]
[Black "KebabJangles"]
[Result "1-0"]
[WhiteElo "2739"]
[BlackElo "2374"]
[TimeControl "180+1"]
[EndTime "14:18:25 PDT"]
[Termination "FelixBlohberger won by checkmate"]

1. Nf3 {[%clk 0:03:00.9]} 1... c5 {[%clk 0:02:53.6]} 2. b3 {[%clk 0:02:58.1]}
2... Nf6 {[%clk 0:02:48]} 3. Bb2 {[%clk 0:02:57.8]} 3... Nc6 {[%clk 0:02:48]} 4.
c4 {[%clk 0:02:55.6]} 4... g6 {[%clk 0:02:46.9]} 5. g3 {[%clk 0:02:54.9]} 5...
Bg7 {[%clk 0:02:46.5]} 6. Bg2 {[%clk 0:02:55.5]} 6... O-O {[%clk 0:02:47]} 7.
O-O {[%clk 0:02:56]} 7... d5 {[%clk 0:02:42.5]} 8. cxd5 {[%clk 0:02:56.3]} 8...
Nxd5 {[%clk 0:02:43.1]} 9. Bxg7 {[%clk 0:02:56.9]} 9... Kxg7 {[%clk 0:02:43.8]}
10. Qc1 {[%clk 0:02:57]} 10... Qd6 {[%clk 0:02:40.8]} 11. Na3 {[%clk 0:02:52.5]}
11... b6 {[%clk 0:02:36]} 12. Qb2+ {[%clk 0:02:47.9]} 12... Qf6 {[%clk
0:02:24.8]} 13. Qxf6+ {[%clk 0:02:43.6]} 13... Kxf6 {[%clk 0:02:23.4]} 14. Nc4
{[%clk 0:02:18.1]} 14... Bb7 {[%clk 0:02:21.6]} 15. Rac1 {[%clk 0:02:17.3]}
15... Rad8 {[%clk 0:02:19.1]} 16. Rfd1 {[%clk 0:02:16.2]} 16... e5 {[%clk
0:02:18.4]} 17. d3 {[%clk 0:02:15]} 17... Rd7 {[%clk 0:02:12.7]} 18. Nfd2 {[%clk
0:02:12.9]} 18... Ke6 {[%clk 0:02:09.8]} 19. Kf1 {[%clk 0:02:05.9]} 19... h6
{[%clk 0:02:08.6]} 20. a3 {[%clk 0:02:05.9]} 20... Rfd8 {[%clk 0:02:07.6]} 21.
h4 {[%clk 0:02:05]} 21... f5 {[%clk 0:02:07.6]} 22. Bh3 {[%clk 0:01:53.4]} 22...
Nf6 {[%clk 0:02:05.2]} 23. Ke1 {[%clk 0:01:46.7]} 23... g5 {[%clk 0:02:01.1]}
24. hxg5 {[%clk 0:01:39.1]} 24... hxg5 {[%clk 0:02:01.1]} 25. Ne4 {[%clk
0:01:21]} 25... g4 {[%clk 0:01:54.8]} 26. Nxf6 {[%clk 0:01:17.9]} 26... Kxf6
{[%clk 0:01:48.3]} 27. Bg2 {[%clk 0:01:17.9]} 27... Rh8 {[%clk 0:01:45.6]} 28.
Ne3 {[%clk 0:01:07.2]} 28... Ke6 {[%clk 0:01:32.5]} 29. b4 {[%clk 0:01:06.5]}
29... Nd4 {[%clk 0:01:23.7]} 30. Bxb7 {[%clk 0:00:54.7]} 30... Rxb7 {[%clk
0:01:23.5]} 31. bxc5 {[%clk 0:00:54.2]} 31... bxc5 {[%clk 0:01:22.1]} 32. Rb1
{[%clk 0:00:17.8]} 32... Rh1+ {[%clk 0:01:17.2]} 33. Nf1 {[%clk 0:00:18.2]}
33... Rxb1 {[%clk 0:01:00.3]} 34. Rxb1 {[%clk 0:00:19.1]} 34... Nc2+ {[%clk
0:01:00.4]} 35. Kd2 {[%clk 0:00:19.3]} 35... Nxa3 {[%clk 0:01:00.6]} 36. Ra1
{[%clk 0:00:16.2]} 36... Nb5 {[%clk 0:00:57.2]} 37. Ra6+ {[%clk 0:00:16.5]}
37... Kd7 {[%clk 0:00:53.1]} 38. Ne3 {[%clk 0:00:17]} 38... f4 {[%clk
0:00:44.6]} 39. Nxg4 {[%clk 0:00:14.5]} 39... fxg3 {[%clk 0:00:43.9]} 40. Nxe5+
{[%clk 0:00:14.5]} 40... Kc7 {[%clk 0:00:42.5]} 41. fxg3 {[%clk 0:00:14.9]}
41... Rg1 {[%clk 0:00:42.5]} 42. Rc6+ {[%clk 0:00:14.5]} 42... Kb7 {[%clk
0:00:42.3]} 43. Rxc5 {[%clk 0:00:15.1]} 43... Kb6 {[%clk 0:00:42.7]} 44. Rc6+
{[%clk 0:00:15.1]} 44... Ka5 {[%clk 0:00:43.2]} 45. g4 {[%clk 0:00:11.5]} 45...
Kb4 {[%clk 0:00:42.5]} 46. Rc4+ {[%clk 0:00:10.2]} 46... Kb3 {[%clk 0:00:41.6]}
47. Ke3 {[%clk 0:00:07.2]} 47... a5 {[%clk 0:00:41.5]} 48. Kf2 {[%clk
0:00:07.4]} 48... Rh1 {[%clk 0:00:39.3]} 49. Rc5 {[%clk 0:00:06]} 49... Kb4
{[%clk 0:00:39]} 50. Rc4+ {[%clk 0:00:04.6]} 50... Kb3 {[%clk 0:00:39.2]} 51.
Nc6 {[%clk 0:00:04]} 51... Ra1 {[%clk 0:00:34.4]} 52. g5 {[%clk 0:00:02.7]}
52... Nd6 {[%clk 0:00:33.9]} 53. Rd4 {[%clk 0:00:02.5]} 53... Nb5 {[%clk
0:00:31.8]} 54. Rd5 {[%clk 0:00:02.6]} 54... Nc3 {[%clk 0:00:29.2]} 55. Rd8
{[%clk 0:00:02.9]} 55... a4 {[%clk 0:00:23.2]} 56. g6 {[%clk 0:00:03.2]} 56...
a3 {[%clk 0:00:23.4]} 57. g7 {[%clk 0:00:03.6]} 57... a2 {[%clk 0:00:24]} 58.
g8=Q+ {[%clk 0:00:04.2]} 58... Kc2 {[%clk 0:00:23.1]} 59. Nd4+ {[%clk
0:00:03.6]} 59... Kd2 {[%clk 0:00:22]} 60. Nb3+ {[%clk 0:00:03.9]} 60... Kd1
{[%clk 0:00:21.8]} 61. Nxa1 {[%clk 0:00:04.8]} 61... Kc1 {[%clk 0:00:21.1]} 62.
Qb3 {[%clk 0:00:04.5]} 62... Kd2 {[%clk 0:00:20.4]} 63. Qc2# {[%clk 0:00:04]}
1-0